[Event "Late-Titled-Tuesday-Blitz-March-05-2024"]
[Site "Chess.com"]
[Date "2024.03.05"]
[Round "10"]
[White "DraningWaterHi"]
[Black "Ducke13"]
[Result "1-0"]
[WhiteElo "2220"]
[BlackElo "2378"]
[TimeControl "180+1"]
[EndTime "15:50:46 PST"]
[Termination "DraningWaterHi won on time"]

1. d4 {[%clk 0:03:00.9]} 1... Nf6 {[%clk 0:02:56.4]} 2. c4 {[%clk 0:03:00]} 2...
g6 {[%clk 0:02:56.8]} 3. Nc3 {[%clk 0:02:58]} 3... d5 {[%clk 0:02:56.2]} 4. e3
{[%clk 0:02:53.8]} 4... Bg7 {[%clk 0:02:54.4]} 5. Nf3 {[%clk 0:02:50.9]} 5...
O-O {[%clk 0:02:54.4]} 6. b3 {[%clk 0:02:49.7]} 6... c5 {[%clk 0:02:54.4]} 7.
Bb2 {[%clk 0:02:48.3]} 7... cxd4 {[%clk 0:02:52.4]} 8. Nxd4 {[%clk 0:02:44.4]}
8... Re8 {[%clk 0:02:39.8]} 9. Be2 {[%clk 0:02:43]} 9... e5 {[%clk 0:02:23.1]}
10. Nf3 {[%clk 0:02:42.2]} 10... e4 {[%clk 0:02:22.9]} 11. Nd4 {[%clk
0:02:41.8]} 11... dxc4 {[%clk 0:02:22.7]} 12. Bxc4 {[%clk 0:02:40.9]} 12... Bg4
{[%clk 0:02:11.8]} 13. Qc2 {[%clk 0:02:40.5]} 13... Nbd7 {[%clk 0:02:08.2]} 14.
h3 {[%clk 0:02:39.8]} 14... Bh5 {[%clk 0:01:50.4]} 15. g4 {[%clk 0:02:38.4]}
15... Nxg4 {[%clk 0:01:49.1]} 16. hxg4 {[%clk 0:02:37.9]} 16... Bxg4 {[%clk
0:01:48.5]} 17. Rg1 {[%clk 0:02:27]} 17... Ne5 {[%clk 0:01:38.4]} 18. Bb5 {[%clk
0:02:26.1]} 18... Re7 {[%clk 0:01:20.7]} 19. Nxe4 {[%clk 0:02:22.8]} 19... Rc8
{[%clk 0:01:14.2]} 20. Nc3 {[%clk 0:02:22.2]} 20... a6 {[%clk 0:00:08.7]} 21.
Be2 {[%clk 0:02:21.2]} 21... Bxe2 {[%clk 0:00:04.5]} 22. Qxe2 {[%clk 0:02:22.1]}
22... Nc6 {[%clk 0:00:03.2]} 23. Nxc6 {[%clk 0:02:18.8]} 23... Rxc6 {[%clk
0:00:04.1]} 24. Na4 {[%clk 0:02:15.4]} 24... Qa5+ {[%clk 0:00:03.6]} 25. Kf1
{[%clk 0:02:14.3]} 25... Bh6 {[%clk 0:00:02.5]} 26. Rd1 {[%clk 0:02:13.4]} 26...
Qf5 {[%clk 0:00:02.4]} 27. Rd8+ {[%clk 0:02:12.9]} 27... Bf8 {[%clk 0:00:03.1]}
28. Ba3 {[%clk 0:01:58.3]} 28... Ree6 {[%clk 0:00:02.5]} 29. Bxf8 {[%clk
0:01:56.5]} 29... Rc1+ {[%clk 0:00:02.1]} 30. Rd1 {[%clk 0:01:53.9]} 30... Qh3+
{[%clk 0:00:01.8]} 31. Ke1 {[%clk 0:01:49.2]} 31... Rxd1+ {[%clk 0:00:02.3]} 32.
Kxd1 {[%clk 0:01:49.8]} 32... Kxf8 {[%clk 0:00:02.8]} 33. Qg4 {[%clk 0:01:45.8]}
33... Qh2 {[%clk 0:00:03]} 34. Qg3 {[%clk 0:01:44.5]} 34... Rd6+ {[%clk
0:00:03.1]} 35. Kc2 {[%clk 0:01:43.5]} 35... Rc6+ {[%clk 0:00:02.4]} 36. Kb2
{[%clk 0:01:43.5]} 36... Qh5 {[%clk 0:00:03.1]} 37. f3 {[%clk 0:01:36.5]} 37...
Qd5 {[%clk 0:00:02.9]} 38. Qf2 {[%clk 0:01:32]} 38... b5 {[%clk 0:00:03]} 39.
Nc3 {[%clk 0:01:30.4]} 39... Qe5 {[%clk 0:00:03.7]} 40. Qd2 {[%clk 0:01:25.5]}
40... b4 {[%clk 0:00:04.2]} 41. Qd8+ {[%clk 0:01:25.2]} 41... Kg7 {[%clk
0:00:04.2]} 42. Qd4 {[%clk 0:01:25.1]} 42... bxc3+ {[%clk 0:00:04]} 43. Kc2
{[%clk 0:01:25.4]} 43... Qxd4 {[%clk 0:00:02.8]} 44. exd4 {[%clk 0:01:26.3]}
44... h5 {[%clk 0:00:02.9]} 45. d5 {[%clk 0:01:23.3]} 45... Rd6 {[%clk
0:00:02.9]} 46. Rd1 {[%clk 0:01:23.5]} 46... Kf6 {[%clk 0:00:02.2]} 47. Kxc3
{[%clk 0:01:23.8]} 47... Ke5 {[%clk 0:00:02.9]} 48. Kc4 {[%clk 0:01:24.3]} 48...
g5 {[%clk 0:00:02.6]} 49. Kc5 {[%clk 0:01:24.7]} 49... Rd8 {[%clk 0:00:02.6]}
50. d6 {[%clk 0:01:25]} 50... Ke6 {[%clk 0:00:02.3]} 51. Kc6 {[%clk 0:01:21.9]}
51... Rc8+ {[%clk 0:00:01.2]} 52. Kb7 {[%clk 0:01:22.2]} 1-0

[Event "Late-Titled-Tuesday-Blitz-March-05-2024"]
[Site "Chess.com"]
[Date "2024.03.05"]
[Round "10"]
[White "TigrVShlyape"]
[Black "Bykov_Egor"]
[Result "1-0"]
[WhiteElo "2880"]
[BlackElo "2629"]
[TimeControl "180+1"]
[EndTime "15:50:48 PST"]
[Termination "TigrVShlyape won on time"]

1. d4 {[%clk 0:03:00.9]} 1... Nf6 {[%clk 0:02:59.7]} 2. Bf4 {[%clk 0:03:00.1]}
2... d5 {[%clk 0:02:57]} 3. e3 {[%clk 0:02:59.8]} 3... c5 {[%clk 0:02:57.6]} 4.
c3 {[%clk 0:02:59.7]} 4... Nc6 {[%clk 0:02:57.5]} 5. Nd2 {[%clk 0:02:59.5]} 5...
Bf5 {[%clk 0:02:57.6]} 6. Qb3 {[%clk 0:02:48.6]} 6... Qc8 {[%clk 0:02:38.8]} 7.
a4 {[%clk 0:02:34.3]} 7... e6 {[%clk 0:02:29.2]} 8. Ngf3 {[%clk 0:02:30]} 8...
c4 {[%clk 0:02:11.2]} 9. Qa2 {[%clk 0:02:29.5]} 9... Na5 {[%clk 0:02:00.6]} 10.
Be2 {[%clk 0:02:24]} 10... Be7 {[%clk 0:01:56.4]} 11. O-O {[%clk 0:02:24]} 11...
O-O {[%clk 0:01:49.8]} 12. Rfc1 {[%clk 0:02:17.5]} 12... Nh5 {[%clk 0:01:34.7]}
13. Bg3 {[%clk 0:02:10.3]} 13... Nxg3 {[%clk 0:01:33.3]} 14. hxg3 {[%clk
0:02:10]} 14... Qc7 {[%clk 0:01:24.3]} 15. b3 {[%clk 0:01:58]} 15... cxb3 {[%clk
0:01:03.6]} 16. Nxb3 {[%clk 0:01:57.5]} 16... Nc4 {[%clk 0:00:56.2]} 17. Nbd2
{[%clk 0:01:38.2]} 17... Nxd2 {[%clk 0:00:52.2]} 18. Nxd2 {[%clk 0:01:35.9]}
18... Rfc8 {[%clk 0:00:43.9]} 19. a5 {[%clk 0:01:32.7]} 19... h6 {[%clk
0:00:15.8]} 20. c4 {[%clk 0:01:28.5]} 20... Bb4 {[%clk 0:00:14.3]} 21. c5 {[%clk
0:01:23.1]} 21... e5 {[%clk 0:00:14.5]} 22. Nb3 {[%clk 0:01:19.7]} 22... exd4
{[%clk 0:00:09]} 23. Nxd4 {[%clk 0:01:13.2]} 23... Be4 {[%clk 0:00:04.9]} 24. c6
{[%clk 0:01:09.4]} 24... bxc6 {[%clk 0:00:04.1]} 25. Nxc6 {[%clk 0:01:06.8]}
25... Bd6 {[%clk 0:00:03.1]} 26. Ba6 {[%clk 0:00:58.3]} 26... Re8 {[%clk
0:00:02.9]} 27. Qb2 {[%clk 0:00:51.1]} 27... Qd7 {[%clk 0:00:01.9]} 28. Bb7
{[%clk 0:00:42.7]} 28... Rab8 {[%clk 0:00:01.1]} 29. Nxb8 {[%clk 0:00:42.2]}
29... Rxb8 {[%clk 0:00:02]} 30. a6 {[%clk 0:00:42.2]} 30... Qg4 {[%clk
0:00:01.7]} 31. Ra4 {[%clk 0:00:33.9]} 1-0

[Event "Late-Titled-Tuesday-Blitz-March-05-2024"]
[Site "Chess.com"]
[Date "2024.03.05"]
[Round "10"]
[White "TheMagician"]
[Black "Zallio"]
[Result "0-1"]
[WhiteElo "2197"]
[BlackElo "2160"]
[TimeControl "180+1"]
[EndTime "15:50:54 PST"]
[Termination "Zallio won on time"]

1. d4 {[%clk 0:03:00.5]} 1... d5 {[%clk 0:02:56.1]} 2. c4 {[%clk 0:02:57.7]}
2... e6 {[%clk 0:02:53.2]} 3. Nf3 {[%clk 0:02:56.4]} 3... Nf6 {[%clk 0:02:53.3]}
4. Nc3 {[%clk 0:02:53.8]} 4... Bb4 {[%clk 0:02:53.1]} 5. Qb3 {[%clk 0:02:38.6]}
5... Nc6 {[%clk 0:02:47.3]} 6. Bg5 {[%clk 0:02:32.8]} 6... dxc4 {[%clk
0:02:34.8]} 7. Qxc4 {[%clk 0:02:29.2]} 7... Qd5 {[%clk 0:02:33.6]} 8. Qxd5
{[%clk 0:02:20.8]} 8... Nxd5 {[%clk 0:02:33.1]} 9. Bd2 {[%clk 0:02:18]} 9... O-O
{[%clk 0:02:26.4]} 10. Nxd5 {[%clk 0:01:58.2]} 10... Bxd2+ {[%clk 0:02:25.4]}
11. Kxd2 {[%clk 0:01:57.7]} 11... exd5 {[%clk 0:02:25.7]} 12. Rc1 {[%clk
0:01:56.7]} 12... Bg4 {[%clk 0:02:25.2]} 13. e3 {[%clk 0:01:51]} 13... a6 {[%clk
0:02:23.7]} 14. Bd3 {[%clk 0:01:39.7]} 14... Rfe8 {[%clk 0:02:17.5]} 15. Rc3
{[%clk 0:01:28.9]} 15... Rad8 {[%clk 0:02:12]} 16. Bxa6 {[%clk 0:01:22.3]} 16...
Bxf3 {[%clk 0:02:06.5]} 17. gxf3 {[%clk 0:01:15.4]} 17... Nxd4 {[%clk
0:01:48.5]} 18. exd4 {[%clk 0:01:10.6]} 18... bxa6 {[%clk 0:01:48.7]} 19. Rxc7
{[%clk 0:01:09.4]} 19... Rb8 {[%clk 0:01:48.9]} 20. b3 {[%clk 0:01:06.7]} 20...
a5 {[%clk 0:01:49.1]} 21. Re1 {[%clk 0:00:54.2]} 21... Rxe1 {[%clk 0:01:44.4]}
22. Kxe1 {[%clk 0:00:53.9]} 22... Kf8 {[%clk 0:01:40.2]} 23. Rc5 {[%clk
0:00:51.7]} 23... a4 {[%clk 0:01:37.1]} 24. bxa4 {[%clk 0:00:48]} 24... Rb1+
{[%clk 0:01:36.7]} 25. Ke2 {[%clk 0:00:48.1]} 25... Rb2+ {[%clk 0:01:37.4]} 26.
Ke3 {[%clk 0:00:44.4]} 26... Rxa2 {[%clk 0:01:37.6]} 27. a5 {[%clk 0:00:44.4]}
27... Ra3+ {[%clk 0:01:37.6]} 28. Kf4 {[%clk 0:00:42]} 28... f6 {[%clk
0:01:38.1]} 29. Rxd5 {[%clk 0:00:35.3]} 29... g5+ {[%clk 0:01:37.5]} 30. Kg3
{[%clk 0:00:32.6]} 30... Kf7 {[%clk 0:01:37.1]} 31. Rb5 {[%clk 0:00:27.9]} 31...
h5 {[%clk 0:01:31.8]} 32. h3 {[%clk 0:00:25.8]} 32... Ra4 {[%clk 0:01:27.4]} 33.
d5 {[%clk 0:00:23.3]} 33... h4+ {[%clk 0:01:27]} 34. Kg2 {[%clk 0:00:21.4]}
34... Ke7 {[%clk 0:01:26.9]} 35. Rb7+ {[%clk 0:00:17.2]} 35... Kd6 {[%clk
0:01:25.9]} 36. Rb6+ {[%clk 0:00:15.8]} 36... Kxd5 {[%clk 0:01:23.1]} 37. Rxf6
{[%clk 0:00:15]} 37... Ke5 {[%clk 0:01:23.6]} 38. Ra6 {[%clk 0:00:08.5]} 38...
Kf4 {[%clk 0:01:23.7]} 39. Ra8 {[%clk 0:00:04.6]} 39... Ra3 {[%clk 0:01:23.8]}
40. a6 {[%clk 0:00:04.4]} 40... Kf5 {[%clk 0:01:06.2]} 0-1

[Event "Late-Titled-Tuesday-Blitz-March-05-2024"]
[Site "Chess.com"]
[Date "2024.03.05"]
[Round "10"]
[White "GlavkonVVS"]
[Black "Cambek64"]
[Result "0-1"]
[WhiteElo "2541"]
[BlackElo "2494"]
[TimeControl "180+1"]
[EndTime "15:50:56 PST"]
[Termination "Cambek64 won by resignation"]

1. c4 {[%clk 0:03:00.9]} 1... c6 {[%clk 0:02:56]} 2. d4 {[%clk 0:02:59.4]} 2...
d5 {[%clk 0:02:56.5]} 3. Nc3 {[%clk 0:02:56.2]} 3... Nf6 {[%clk 0:02:57]} 4. Nf3
{[%clk 0:02:55.6]} 4... a6 {[%clk 0:02:57.6]} 5. a4 {[%clk 0:02:55.1]} 5... b6
{[%clk 0:02:50.6]} 6. e3 {[%clk 0:02:44.3]} 6... Bg4 {[%clk 0:02:49.4]} 7. Qb3
{[%clk 0:02:42.1]} 7... Bxf3 {[%clk 0:02:48.1]} 8. gxf3 {[%clk 0:02:41.9]} 8...
e6 {[%clk 0:02:48.1]} 9. e4 {[%clk 0:02:27.2]} 9... Be7 {[%clk 0:02:43.3]} 10.
e5 {[%clk 0:02:21.2]} 10... Nh5 {[%clk 0:02:30.2]} 11. f4 {[%clk 0:02:14.7]}
11... g6 {[%clk 0:02:28.7]} 12. Be2 {[%clk 0:02:09.9]} 12... Ng7 {[%clk
0:02:28.3]} 13. cxd5 {[%clk 0:02:09.2]} 13... cxd5 {[%clk 0:02:27.4]} 14. Bd3
{[%clk 0:01:54.3]} 14... O-O {[%clk 0:02:26.5]} 15. Be3 {[%clk 0:01:49.3]} 15...
Nc6 {[%clk 0:02:26.8]} 16. Ne2 {[%clk 0:01:47.5]} 16... Nb4 {[%clk 0:02:24.1]}
17. Bb1 {[%clk 0:01:23.1]} 17... Rc8 {[%clk 0:02:13.8]} 18. h4 {[%clk
0:01:21.1]} 18... h5 {[%clk 0:02:12.7]} 19. Ng3 {[%clk 0:01:19.6]} 19... Qc7
{[%clk 0:02:08.1]} 20. Kf1 {[%clk 0:01:10.1]} 20... Qc4+ {[%clk 0:02:06.4]} 21.
Qxc4 {[%clk 0:01:10.2]} 21... Rxc4 {[%clk 0:02:06.1]} 22. Kg2 {[%clk 0:01:08]}
22... Rfc8 {[%clk 0:02:04.5]} 23. Ra3 {[%clk 0:00:59.4]} 23... Nc2 {[%clk
0:02:03.4]} 24. Rb3 {[%clk 0:00:56.1]} 24... R8c6 {[%clk 0:02:01.9]} 25. Bxc2
{[%clk 0:00:53.9]} 25... Rxc2 {[%clk 0:01:59.7]} 26. Rd1 {[%clk 0:00:52.6]}
26... Bxh4 {[%clk 0:01:58.5]} 27. Rdd3 {[%clk 0:00:48.4]} 27... Bd8 {[%clk
0:01:57.8]} 28. Rdc3 {[%clk 0:00:45.9]} 28... R6xc3 {[%clk 0:01:53.8]} 29. bxc3
{[%clk 0:00:45.6]} 29... Ra2 {[%clk 0:01:53.6]} 30. Rb4 {[%clk 0:00:35.7]} 30...
a5 {[%clk 0:01:53.4]} 31. Rb5 {[%clk 0:00:34.9]} 31... Rxa4 {[%clk 0:01:53.1]}
32. Ne2 {[%clk 0:00:31]} 32... Rc4 {[%clk 0:01:50]} 33. Kf1 {[%clk 0:00:26.8]}
33... Nf5 {[%clk 0:01:49.5]} 34. Ke1 {[%clk 0:00:25.9]} 34... Kf8 {[%clk
0:01:49.3]} 35. Kd2 {[%clk 0:00:25.8]} 35... Ke8 {[%clk 0:01:50]} 36. Kd3 {[%clk
0:00:25.6]} 36... Kd7 {[%clk 0:01:49.6]} 37. Bd2 {[%clk 0:00:25.4]} 37... Kc6
{[%clk 0:01:48.3]} 38. Rb1 {[%clk 0:00:25.7]} 38... b5 {[%clk 0:01:47.2]} 39.
Ng3 {[%clk 0:00:24.7]} 39... Nxg3 {[%clk 0:01:45.3]} 40. fxg3 {[%clk 0:00:24.6]}
40... Bb6 {[%clk 0:01:44.4]} 41. g4 {[%clk 0:00:21]} 41... hxg4 {[%clk
0:01:43.8]} 42. Rh1 {[%clk 0:00:20.6]} 42... b4 {[%clk 0:01:44.3]} 43. Rh7
{[%clk 0:00:20.2]} 43... bxc3 {[%clk 0:01:44.5]} 44. Bxc3 {[%clk 0:00:20.3]}
44... g3 {[%clk 0:01:37.7]} 45. Rh3 {[%clk 0:00:19.8]} 45... g2 {[%clk
0:01:34.3]} 46. Rg3 {[%clk 0:00:20.1]} 46... Ra4 {[%clk 0:01:23.2]} 47. Rxg2
{[%clk 0:00:19.9]} 47... Ra3 {[%clk 0:01:13.5]} 48. Rh2 {[%clk 0:00:19.7]} 48...
a4 {[%clk 0:01:13.7]} 49. Kc2 {[%clk 0:00:18.3]} 49... Ra2+ {[%clk 0:01:12.4]}
50. Bb2 {[%clk 0:00:15.7]} 50... a3 {[%clk 0:01:12.8]} 51. Kb3 {[%clk
0:00:12.8]} 51... Rxb2+ {[%clk 0:01:13]} 52. Rxb2 {[%clk 0:00:12.9]} 52... axb2
{[%clk 0:01:13.4]} 0-1

[Event "Late-Titled-Tuesday-Blitz-March-05-2024"]
[Site "Chess.com"]
[Date "2024.03.05"]
[Round "10"]
[White "Eeleyah"]
[Black "MaiqMaster"]
[Result "0-1"]
[WhiteElo "2448"]
[BlackElo "2342"]
[TimeControl "180+1"]
[EndTime "15:50:56 PST"]
[Termination "MaiqMaster won by resignation"]

1. d4 {[%clk 0:03:00.2]} 1... d5 {[%clk 0:02:58.7]} 2. c4 {[%clk 0:03:00]} 2...
e6 {[%clk 0:02:59.1]} 3. Nf3 {[%clk 0:02:59.1]} 3... Nf6 {[%clk 0:02:59.2]} 4.
g3 {[%clk 0:02:59.7]} 4... Bb4+ {[%clk 0:02:58]} 5. Nbd2 {[%clk 0:02:59.2]} 5...
dxc4 {[%clk 0:02:57.5]} 6. Qc2 {[%clk 0:02:59.5]} 6... b5 {[%clk 0:02:54.8]} 7.
a4 {[%clk 0:02:58.6]} 7... c6 {[%clk 0:02:52.6]} 8. Bg2 {[%clk 0:02:58.9]} 8...
Bb7 {[%clk 0:02:34.3]} 9. O-O {[%clk 0:02:03.3]} 9... O-O {[%clk 0:02:19.9]} 10.
Rd1 {[%clk 0:01:59.4]} 10... Nbd7 {[%clk 0:02:11.6]} 11. b3 {[%clk 0:01:48.3]}
11... cxb3 {[%clk 0:02:05]} 12. Nxb3 {[%clk 0:01:49.2]} 12... a5 {[%clk
0:01:58.3]} 13. Ne5 {[%clk 0:01:44]} 13... bxa4 {[%clk 0:01:44.6]} 14. Nc5
{[%clk 0:01:31.9]} 14... Nxc5 {[%clk 0:01:34.9]} 15. dxc5 {[%clk 0:01:29.4]}
15... Qe7 {[%clk 0:01:27.6]} 16. Nd3 {[%clk 0:01:01]} 16... Nd5 {[%clk
0:01:20.8]} 17. Nxb4 {[%clk 0:00:49.8]} 17... axb4 {[%clk 0:01:16.8]} 18. Rxa4
{[%clk 0:00:49]} 18... Rxa4 {[%clk 0:01:15.6]} 19. Qxa4 {[%clk 0:00:49.9]} 19...
Nc3 {[%clk 0:01:15.1]} 20. Qb3 {[%clk 0:00:44]} 20... Nxd1 {[%clk 0:01:14.8]}
21. Qxd1 {[%clk 0:00:44.9]} 21... Rd8 {[%clk 0:01:14]} 22. Qc2 {[%clk
0:00:41.6]} 22... Ba6 {[%clk 0:01:08.6]} 23. Bf3 {[%clk 0:00:40.2]} 23... Bb5
{[%clk 0:01:05.5]} 24. Bf4 {[%clk 0:00:36.5]} 24... e5 {[%clk 0:01:03.6]} 25.
Bd2 {[%clk 0:00:33.9]} 25... b3 {[%clk 0:00:58]} 26. Qb2 {[%clk 0:00:33.9]}
26... Qxc5 {[%clk 0:00:56.4]} 27. Bc3 {[%clk 0:00:32.5]} 27... Qc4 {[%clk
0:00:43.3]} 28. Kg2 {[%clk 0:00:30.6]} 28... e4 {[%clk 0:00:42.6]} 29. Bg4
{[%clk 0:00:29.6]} 29... Qd5 {[%clk 0:00:33.8]} 30. Bxg7 {[%clk 0:00:27.5]}
30... f5 {[%clk 0:00:20.8]} 31. Bh6 {[%clk 0:00:26.2]} 31... Qd4 {[%clk
0:00:16]} 32. Qd2 {[%clk 0:00:25.2]} 32... Qxd2 {[%clk 0:00:15.7]} 33. Bxd2
{[%clk 0:00:20]} 33... Rxd2 {[%clk 0:00:16.6]} 34. Bxf5 {[%clk 0:00:20.7]} 34...
Bxe2 {[%clk 0:00:14.5]} 0-1

[Event "Late-Titled-Tuesday-Blitz-March-05-2024"]
[Site "Chess.com"]
[Date "2024.03.05"]
[Round "10"]
[White "Malev212"]
[Black "KNVB"]
[Result "1-0"]
[WhiteElo "2657"]
[BlackElo "2791"]
[TimeControl "180+1"]
[EndTime "15:50:59 PST"]
[Termination "Malev212 won on time"]

1. e4 {[%clk 0:02:55]} 1... b6 {[%clk 0:02:58.8]} 2. d4 {[%clk 0:02:52.8]} 2...
Bb7 {[%clk 0:02:59.2]} 3. Nc3 {[%clk 0:02:52.3]} 3... e6 {[%clk 0:02:59.5]} 4.
Bd3 {[%clk 0:02:50.9]} 4... Nf6 {[%clk 0:02:59.5]} 5. Nh3 {[%clk 0:02:50.1]}
5... g6 {[%clk 0:02:58.1]} 6. O-O {[%clk 0:02:32.1]} 6... Bg7 {[%clk 0:02:57]}
7. e5 {[%clk 0:02:32.1]} 7... Nd5 {[%clk 0:02:47.1]} 8. Nxd5 {[%clk 0:02:30.8]}
8... Bxd5 {[%clk 0:02:47.2]} 9. Bg5 {[%clk 0:02:19.8]} 9... Qc8 {[%clk
0:01:56.3]} 10. Qd2 {[%clk 0:01:57.1]} 10... h6 {[%clk 0:01:41.6]} 11. Be3
{[%clk 0:01:51]} 11... Bb7 {[%clk 0:01:06.7]} 12. f4 {[%clk 0:01:41]} 12... Nc6
{[%clk 0:01:04.8]} 13. Nf2 {[%clk 0:01:28.4]} 13... Ne7 {[%clk 0:01:00.9]} 14.
Ne4 {[%clk 0:01:26.6]} 14... Nf5 {[%clk 0:00:26.9]} 15. Bf2 {[%clk 0:01:22.7]}
15... h5 {[%clk 0:00:27.3]} 16. c4 {[%clk 0:01:21]} 16... d6 {[%clk 0:00:20.2]}
17. d5 {[%clk 0:01:08.6]} 17... dxe5 {[%clk 0:00:13.5]} 18. fxe5 {[%clk
0:01:06.9]} 18... Bxe5 {[%clk 0:00:05]} 19. Rae1 {[%clk 0:01:06.5]} 19... O-O
{[%clk 0:00:05.4]} 20. Ng5 {[%clk 0:00:58.6]} 20... Bf6 {[%clk 0:00:03.1]} 21.
dxe6 {[%clk 0:00:56.8]} 21... fxe6 {[%clk 0:00:03.7]} 22. Nxe6 {[%clk
0:00:55.1]} 22... Re8 {[%clk 0:00:01.7]} 23. Bxf5 {[%clk 0:00:50.8]} 23... gxf5
{[%clk 0:00:02.6]} 24. Qh6 {[%clk 0:00:49.5]} 24... Rxe6 {[%clk 0:00:02.7]} 25.
Qg6+ {[%clk 0:00:46.1]} 25... Kh8 {[%clk 0:00:02.8]} 26. Qxf5 {[%clk 0:00:22.4]}
26... Rxe1 {[%clk 0:00:02.1]} 27. Qxf6+ {[%clk 0:00:21.7]} 27... Kg8 {[%clk
0:00:02.6]} 28. Bxe1 {[%clk 0:00:17.2]} 28... Qg4 {[%clk 0:00:01.9]} 29. Qf7+
{[%clk 0:00:16.8]} 29... Kh8 {[%clk 0:00:02.6]} 30. Bc3+ {[%clk 0:00:16.2]} 1-0

[Event "Late-Titled-Tuesday-Blitz-March-05-2024"]
[Site "Chess.com"]
[Date "2024.03.05"]
[Round "10"]
[White "maximnovik"]
[Black "ChessSwole"]
[Result "0-1"]
[WhiteElo "2605"]
[BlackElo "2731"]
[TimeControl "180+1"]
[EndTime "15:51:02 PST"]
[Termination "ChessSwole won on time"]

1. e4 {[%clk 0:03:00.9]} 1... c6 {[%clk 0:02:59.5]} 2. d4 {[%clk 0:03:00.4]}
2... d5 {[%clk 0:03:00.1]} 3. Nc3 {[%clk 0:03:01]} 3... dxe4 {[%clk 0:03:00.1]}
4. Nxe4 {[%clk 0:03:01.6]} 4... Nf6 {[%clk 0:03:00.2]} 5. Nxf6+ {[%clk
0:03:01.7]} 5... exf6 {[%clk 0:03:01.1]} 6. c3 {[%clk 0:03:02]} 6... Bd6 {[%clk
0:03:01.4]} 7. Bd3 {[%clk 0:03:02.5]} 7... O-O {[%clk 0:03:01.4]} 8. Ne2 {[%clk
0:03:03.1]} 8... Re8 {[%clk 0:03:02.3]} 9. O-O {[%clk 0:03:03.1]} 9... Nd7
{[%clk 0:03:01.7]} 10. Bf4 {[%clk 0:03:02.8]} 10... Nf8 {[%clk 0:02:59.3]} 11.
Qd2 {[%clk 0:03:02.3]} 11... Ng6 {[%clk 0:02:58.3]} 12. Bxd6 {[%clk 0:03:00.8]}
12... Qxd6 {[%clk 0:02:59.2]} 13. Rfe1 {[%clk 0:03:00.1]} 13... a5 {[%clk
0:02:56.5]} 14. Ng3 {[%clk 0:02:58.5]} 14... Be6 {[%clk 0:02:55.9]} 15. Re3
{[%clk 0:02:56.6]} 15... Nf4 {[%clk 0:02:49.5]} 16. Bf1 {[%clk 0:02:55.9]} 16...
Nd5 {[%clk 0:02:47.3]} 17. Ree1 {[%clk 0:02:55.2]} 17... f5 {[%clk 0:02:43.4]}
18. Bd3 {[%clk 0:02:39.5]} 18... g6 {[%clk 0:02:43]} 19. h4 {[%clk 0:02:29.5]}
19... h5 {[%clk 0:02:40.8]} 20. Nxh5 {[%clk 0:02:21.1]} 20... gxh5 {[%clk
0:02:35.7]} 21. Qg5+ {[%clk 0:02:20.1]} 21... Kf8 {[%clk 0:02:33.5]} 22. Qxh5
{[%clk 0:02:00.9]} 22... Qf4 {[%clk 0:02:25]} 23. Re5 {[%clk 0:01:41.2]} 23...
Nf6 {[%clk 0:02:15]} 24. Qg5 {[%clk 0:01:13.1]} 24... Qxg5 {[%clk 0:02:09.3]}
25. hxg5 {[%clk 0:01:13.1]} 25... Nd5 {[%clk 0:01:47.6]} 26. Bxf5 {[%clk
0:01:02.9]} 26... Bxf5 {[%clk 0:01:46.2]} 27. Rxf5 {[%clk 0:01:02.9]} 27... Kg7
{[%clk 0:01:46.4]} 28. c4 {[%clk 0:00:47.2]} 28... Nc7 {[%clk 0:01:44.7]} 29.
Rd1 {[%clk 0:00:45.2]} 29... Re2 {[%clk 0:01:40.7]} 30. b3 {[%clk 0:00:30.2]}
30... Rxa2 {[%clk 0:01:36.1]} 31. g3 {[%clk 0:00:26.9]} 31... Rd8 {[%clk
0:01:32.5]} 32. Rd3 {[%clk 0:00:23.6]} 32... Rd7 {[%clk 0:01:24.4]} 33. d5
{[%clk 0:00:20.2]} 33... cxd5 {[%clk 0:01:23.6]} 34. cxd5 {[%clk 0:00:20.4]}
34... Nb5 {[%clk 0:01:13.2]} 35. Rf6 {[%clk 0:00:16.4]} 35... Rd6 {[%clk
0:01:06.8]} 36. Rf5 {[%clk 0:00:11.4]} 36... Rc2 {[%clk 0:01:00.1]} 37. g4
{[%clk 0:00:10.7]} 37... Rc5 {[%clk 0:00:53.3]} 38. Rdf3 {[%clk 0:00:09.8]}
38... Rc7 {[%clk 0:00:53]} 39. Rd3 {[%clk 0:00:08.9]} 39... Rc3 {[%clk
0:00:49.8]} 40. Rd1 {[%clk 0:00:03.8]} 40... Rxb3 {[%clk 0:00:49.4]} 41. Kg2
{[%clk 0:00:04.1]} 41... a4 {[%clk 0:00:49]} 0-1

[Event "Late-Titled-Tuesday-Blitz-March-05-2024"]
[Site "Chess.com"]
[Date "2024.03.05"]
[Round "10"]
[White "JSPrepz"]
[Black "Beca95"]
[Result "0-1"]
[WhiteElo "2853"]
[BlackElo "2978"]
[TimeControl "180+1"]
[EndTime "15:51:11 PST"]
[Termination "Beca95 won on time"]

1. e4 {[%clk 0:02:57.8]} 1... d5 {[%clk 0:02:57.8]} 2. exd5 {[%clk 0:02:57.7]}
2... Qxd5 {[%clk 0:02:58.7]} 3. Nc3 {[%clk 0:02:58.1]} 3... Qa5 {[%clk
0:02:59.2]} 4. g3 {[%clk 0:02:58.3]} 4... c6 {[%clk 0:02:58.2]} 5. Bg2 {[%clk
0:02:58.8]} 5... Nf6 {[%clk 0:02:58]} 6. d4 {[%clk 0:02:58.1]} 6... Bg4 {[%clk
0:02:56.1]} 7. Ne2 {[%clk 0:02:53.3]} 7... e6 {[%clk 0:02:49.8]} 8. h3 {[%clk
0:02:52.8]} 8... Bxe2 {[%clk 0:02:49.1]} 9. Qxe2 {[%clk 0:02:51.9]} 9... Nbd7
{[%clk 0:02:48.6]} 10. Bd2 {[%clk 0:02:48.1]} 10... Qb6 {[%clk 0:02:42.6]} 11.
O-O-O {[%clk 0:02:44.3]} 11... Be7 {[%clk 0:02:38.2]} 12. g4 {[%clk 0:02:38.6]}
12... Nd5 {[%clk 0:02:28.7]} 13. Nxd5 {[%clk 0:02:23.9]} 13... cxd5 {[%clk
0:02:28.1]} 14. Rhe1 {[%clk 0:02:22.9]} 14... Qc6 {[%clk 0:01:21.7]} 15. f4
{[%clk 0:02:21.2]} 15... Rc8 {[%clk 0:01:21.5]} 16. c3 {[%clk 0:02:16.9]} 16...
Bh4 {[%clk 0:01:11.6]} 17. Rf1 {[%clk 0:02:12.7]} 17... Nb6 {[%clk 0:01:05.6]}
18. b3 {[%clk 0:01:59.4]} 18... Bf6 {[%clk 0:01:03]} 19. Kb1 {[%clk 0:01:52.8]}
19... O-O {[%clk 0:00:57.4]} 20. g5 {[%clk 0:01:46.1]} 20... Be7 {[%clk
0:00:55.4]} 21. f5 {[%clk 0:01:46.3]} 21... Ba3 {[%clk 0:00:55.1]} 22. f6 {[%clk
0:01:37.8]} 22... Nc4 {[%clk 0:00:54.5]} 23. Be1 {[%clk 0:01:18.9]} 23... Qb6
{[%clk 0:00:38.2]} 24. fxg7 {[%clk 0:01:16.2]} 24... Kxg7 {[%clk 0:00:39.1]} 25.
Rd3 {[%clk 0:00:40.3]} 25... a5 {[%clk 0:00:38.3]} 26. Qh5 {[%clk 0:00:34.2]}
26... Qb5 {[%clk 0:00:30.6]} 27. Rdf3 {[%clk 0:00:32.9]} 27... Nd6 {[%clk
0:00:29.8]} 28. Bg3 {[%clk 0:00:20.4]} 28... Kg8 {[%clk 0:00:18.1]} 29. Be5
{[%clk 0:00:03.5]} 29... Qe2 {[%clk 0:00:15.7]} 30. R3f2 {[%clk 0:00:02.2]}
30... Qxh5 {[%clk 0:00:15.3]} 0-1